Cogmind - Beta 11.1 @@@ ROGUE MODE // 2022.04.26 @ 15:17:04 Player: FrigidRock Result: Destroyed by D-53 Grenadier with Mini Grenade Launcher Performance ------------- Evolutions (0) 0 Regions Visited (2) 400 Robots Destroyed (12) 60 Value Destroyed (378) 378 Prototype IDs (3) 60 Alien Tech Used (0) 0 Bonus (0) 0 TOTAL SCORE: 898 Bonus ------- None Cogmind --------- Core Integrity 0/250 Matter 260/300 Energy 100/100 System Corruption 0% Temperature Cool (0) Movement Core (100) Ox1 Location -10/Mines Parts ------- > --- POWER (1) -------- (None) > --- PROPULSION (2) --- (None) > --- UTILITY (2) ------ Small Storage Unit Experimental Sensor Array > --- WEAPON (2) ------- (None) > --- INVENTORY (8) ---- Light Nuclear Core Light Treads High-capacity Storage Unit Large Battery (200) Signal Interpreter Improved Terrain Scanner Particle Gun Peak State ------------ > --- POWER ------------ Light Nuclear Core > --- PROPULSION ------- Light Treads Light Treads > --- UTILITY ---------- Small Storage Unit Experimental Sensor Array > --- WEAPON ----------- Medium Laser Beam Cannon > --- INVENTORY -------- Light Ion Engine Light Treads Large Battery Signal Interpreter Improved Terrain Scanner EM Pulse Gun Small Laser Mini Grenade Launcher [Rating: 18] Favorites ----------- Power Light Nuclear Core Engine Light Ion Engine Power Core Light Nuclear Core Propulsion Light Treads Treads Light Treads Utility Small Storage Unit Device Experimental Sensor Array Storage Small Storage Unit Weapon Medium Laser Energy Gun Medium Laser Energy Cannon Beam Cannon Launcher Mini Grenade Launcher Build | -11 -10 -10 ------- Run | Scr Mat Min Slots Evolved . | . . . Power . | . . . Propulsion . | . . . Utility . | . . . Weapon . | . . . Parts Attached 12 | 8 2 2 Power 2 | 1 1 . Engine 1 | 1 . . Core 1 | . 1 . Reactor . | . . . Propulsion 2 | 2 . . Treads 2 | 2 . . Leg . | . . . Wheel . | . . . Hover . | . . . Flight . | . . . Utility 3 | 2 . 1 Device 2 | 1 . 1 Storage 1 | 1 . . Processor . | . . . Hackware . | . . . Protection . | . . . Artifact . | . . . Weapon 5 | 3 1 1 Energy Gun 3 | 3 . . Energy Cannon 1 | . 1 . Ballistic Gun . | . . . Ballistic Cannon . | . . . Launcher 1 | . . 1 Special Weapon . | . . . Impact Weapon . | . . . Slashing Weapon . | . . . Piercing Weapon . | . . . Special Melee Weapon . | . . . Unidentified Prototypes 1 | . . 1 Parts Lost 6 | . . 6 Power 1 | . . 1 Propulsion 2 | . . 2 Utility . | . . . Weapon 3 | . . 3 Highest Loss Streak 6 | . . 6 To Critical Strikes . | . . . Average Slot Usage (%) 99 | . 100 99 Engine 2 | . 7 . Core 11 | . 6 14 Treads 27 | . 28 27 Device 14 | . 14 14 Storage 14 | . 14 14 Energy Gun 15 | . 18 13 Energy Cannon 12 | . 9 13 Naked Turns . | . . . Heaviest Build 16 | 12 16 16 Greatest Support 40 | 40 40 40 Greatest Overweight (x) 1 | 1 . . Average Overweight (x) . | . . . Largest Inventory Capacity 8 | 8 8 8 Average Capacity 7 | 7 8 8 Most Carried 8 | 1 7 8 Average Carried 5 | . 4 7 Final Capacity 8 | 8 8 8 Final Carried 7 | 1 7 7 Class Distribution -------------------- 100% | Mutant Dominant Class ---------------- Mutant | -10/Materials Mutant | -10/Mines Resources | -11 -10 -10 ----------- Run | Scr Mat Min Matter Collected 310 | 280 20 10 Remotely . | . . . Salvage Created 489 | 23 172 294 Parts 30 | 5 8 17 Haulers Intercepted . | . . . Recyclers Shooed . | . . . Parts Field Recycled . | . . . Retrieved Matter . | . . . Parts Self-Destructed . | . . . Prevented . | . . . Kills | -11 -10 -10 ------- Run | Scr Mat Min Combat Hostiles Destroyed 9 | . 4 5 Guns 2 | . . 2 Cannons 7 | . 4 3 Classes Destroyed 3 | 1 1 1 Tunneler 2 | 1 . 1 Recycler 1 | . . 1 Grunt 9 | . 4 5 Best Kill Streak 3 | 1 3 2 Combat Bots Only 3 | . 3 2 Max Kills in Single Turn 1 | 1 1 1 Gunslinging . | . . . Exploded . | . . . Melee . | . . . Uniques/NPCs Destroyed . | . . . Combat | -11 -10 -10 -------- Run | Scr Mat Min Damage Taken 839 | . 214 625 Core 250 | . 31 219 Absorbed by Shields . | . . . Core Remaining (%) 100 | 100 . . Volleys Fired 38 | 2 14 22 Largest 2 | 2 2 2 Hottest 110 | 90 110 110 Shots Fired 70 | 4 28 38 Gun 35 | 4 15 16 Cannon 30 | . 13 17 Launcher 5 | . . 5 Special . | . . . Kinetic . | . . . Thermal 65 | 4 28 33 Explosive 5 | . . 5 Electromagnetic . | . . . Robot Hit Streak 10 | 1 7 10 Robot Miss Streak 4 | 2 4 2 Penetration Max . | . . . Secondary Targets . | . . . Shots Hit Robots 44 | 1 20 23 Core Hits 24 | 1 8 15 Critical Kills . | . . . Critical Parts Destroyed . | . . . Critical Strikes 4 | . 3 1 Burn 4 | . 3 1 Melee Attacks . | . . . Impact . | . . . Slashing . | . . . Piercing . | . . . Sneak Attacks . | . . . Combat Hostiles . | . . . Follow-up Attacks . | . . . Damage Inflicted 799 | 12 309 478 Guns 287 | 12 149 126 Cannons 351 | . 160 191 Explosions 160 | . . 160 Melee . | . . . Ramming 1 | . . 1 Kinetic . | . . . Thermal 638 | 12 309 317 Explosive 160 | . . 160 Electromagnetic . | . . . Impact . | . . . Slashing . | . . . Piercing . | . . . Highest Corruption . | . . . Average Corruption . | . . . Corruption Purged . | . . . Corruption Blocked . | . . . Overload Shots . | . . . Overflow Damage . | . . . Projectiles . | . . . Explosions . | . . . Melee . | . . . Knockbacks . | . . . Impact . | . . . Kinetic . | . . . Secondary . | . . . Self-Inflicted Damage 11 | . . 11 Shots 1 | . . 1 Rammed . | . . . Targets Rammed 1 | . . 1 Kicked . | . . . Crushed 1 | . . 1 Highest Temperature 409 | 60 340 409 Average Temperature 166 | 30 145 194 Received Heat Transfer 249 | . 123 126 Effects 4 | . . 4 Shutdowns 1 | . . 1 Energy Bleed 2 | . . 2 Interference 1 | . . 1 Siege Activations . | . . . Robots Corrupted . | . . . Combat Hostiles . | . . . Parts Fried . | . . . Impact Corruptions . | . . . Robots Melted . | . . . Combat Hostiles . | . . . Parts Melted 2 | . 1 1 Heat Transferred 1875 | 37 987 851 Parts Sabotaged . | . . . Parts Stolen . | . . . Parts Stripped . | . . . Power Chain Reactions . | . . . Missiles Intercepted . | . . . Alert | -11 -10 -10 ------- Run | Scr Mat Min Peak Influence 176 | 5 176 123 Initial 68 | . 3 68 Average 56 | 1 69 55 Maximum Alert Level . | . . . Low Security (%) 100 | 100 100 100 Level 1 . | . . . Level 2 . | . . . Level 3 . | . . . Level 4 . | . . . Level 5 . | . . . High Security . | . . . Max Security . | . . . Squads Dispatched 2 | . 2 . Investigation 1 | . 1 . Extermination . | . . . Reinforcement 1 | . 1 . Assault . | . . . Garrison . | . . . Intercept . | . . . Searches Triggered . | . . . Construction Impeded . | . . . Haulers Reinforced . | . . . Active Scanning Responses . | . . . Cargo Convoy Interrupts . | . . . Stealth | -11 -10 -10 --------- Run | Scr Mat Min Distress Signals . | . . . Communications Jammed . | . . . Distress Signals . | . . . Times Spotted 21 | . 7 14 Peak Tracking Total 8 | . 3 8 Tactical Retreats 1 | . . 1 Traps | -11 -10 -10 ------- Run | Scr Mat Min Traps Triggered 1 | . 1 . Indirectly . | . . . Trap Hack Attempts . | . . . Triggered . | . . . Disarmed . | . . . Reprogrammed . | . . . Reused . | . . . Traps Extracted . | . . . Installed . | . . . Triggered . | . . . Machines | -11 -10 -10 ---------- Run | Scr Mat Min Machines Disabled . | . . . Max in Single Turn . | . . . Machines Sabotaged . | . . . Garrisons Compromised . | . . . Overloaded Fab Kills . | . . . Hacking | -11 -10 -10 --------- Run | Scr Mat Min Machines Accessed 4 | . 4 . Terminals 3 | . 3 . Fabricators . | . . . Repair Stations . | . . . Recycling Units 1 | . 1 . Scanalyzers . | . . . Garrison Access . | . . . Total Hacks 6 | . 6 . Successful 4 | . 4 . Failed 2 | . 2 . Catastrophic . | . . . Database Lockouts . | . . . Manual 1 | . 1 . Terminals 5 | . 5 . Fabricators . | . . . Repair Stations . | . . . Recycling Units 1 | . 1 . Scanalyzers . | . . . Garrison Access . | . . . Terminal Hacks 3 | . 3 . Prototype ID Bank 1 | . 1 . Level Access Points 1 | . 1 . Hauler Manifests 1 | . 1 . Fabricator Hacks . | . . . Repair Station Hacks . | . . . Recycling Unit Hacks . | . . . Scanalyzer . | . . . Garrison Access Hacks . | . . . Unauthorized Hacks 1 | . 1 . Terminals . | . . . Fabricators . | . . . Repair Stations . | . . . Recycling Units 1 | . 1 . Tunnel 1 | . 1 . Scanalyzers . | . . . Garrison Access . | . . . Data Cores Recovered . | . . . Used . | . . . Hacking Detections 2 | . 2 . Full Trace Events . | . . . Feedback Events . | . . . Feedback Blocked . | . . . Robot Schematics Acquired . | . . . Robots Built . | . . . Authchips . | . . . Time . | . . . Total Robot Build Rating . | . . . Part Schematics Acquired . | . . . Parts Built . | . . . Authchips . | . . . Time . | . . . Total Part Build Rating . | . . . Parts Repaired . | . . . Time . | . . . Parts Recycled . | . . . Recycled Matter . | . . . Retrieved Matter . | . . . Retrieved Components . | . . . Parts Scanalyzed . | . . . Part Schematics Acquired . | . . . Parts Damaged . | . . . Bothacking | -11 -10 -10 ------------ Run | Scr Mat Min Used RIF Installer . | . . . Robots Hacked . | . . . Non-combat . | . . . Combat . | . . . Robot Hacks Applied . | . . . Relay Couplers Released . | . . . Fabnet Peak Effective % . | . . . Robots Rewired . | . . . Allies Hacked . | . . . Hacks Repelled . | . . . Allies | -11 -10 -10 -------- Run | Scr Mat Min Total Allies 1 | . . 1 Largest Group 1 | . . 1 Highest-Rated Group 31 | . . 31 Highest-Rated Ally 31 | . . 31 Total Orders . | . . . Ally Attacks 2 | . . 2 Total Damage 22 | . . 22 Kills . | . . . Allies Corrupted . | . . . Allies Melted . | . . . Intel | -11 -10 -10 ------- Run | Scr Mat Min Robot Analysis Total . | . . . Derelict Logs Recovered 1 | . . 1 Drone Launches . | . . . Drone Recoveries . | . . . Exploration | -11 -10 -10 ------------- Run | Scr Mat Min Turns Passed 1187 | 80 399 708 Spaces Moved 643 | 41 213 389 Core 4 | 4 . . Treads 639 | 37 213 389 Legs . | . . . Wheels . | . . . Hover . | . . . Flight . | . . . Fastest Speed 50 | 50 160 160 Average Speed 159 | 151 160 160 Slowest Speed 160 | 160 160 160 Overloaded Moves . | . . . Propulsion Burnouts . | . . . Robots Hopped . | . . . Cave-ins Triggered . | . . . Exploration Rate (%) 43 | 4 45 82 Regions Visited 2 Branch Regions 1 Pre-discovered Areas 2 | . 1 1 Known Exits Taken . | . . . Unknown Exits Taken 2 | 1 1 . Scrap Searched 1 | . . 1 Spaces Dug . | . . . Terrain Destroyed 25 | . . 25 Melee . | . . . Projectile . | . . . AOE 25 | . . 25 Terrain Rammed . | . . . Walls Destroyed . | . . . Machines Disabled . | . . . Actions | -11 -10 -10 --------- Run | Scr Mat Min Total 732 | 51 242 439 Wait 24 | . 8 16 Move 641 | 40 212 389 Hop . | . . . Pick Up 12 | 1 6 5 Fast Attach 7 | 7 . . Attach 1 | . . 1 Detach . | . . . Swap 4 | 1 2 1 Drop 4 | . . 4 Fire 38 | 2 14 22 Melee . | . . . Ram . | . . . Kick . | . . . Crush 1 | . . 1 Escape Stasis . | . . . Rewire . | . . . Trap . | . . . Miscellaneous . | . . . Route ------- -11/Scrapyard -10/Materials (discovered 4 exits: *Mat x3 / [*Min]) -10/Mines (discovered 2 exits: *Mat x2) History --------- Turn | Location | Event 35 | -11/Scrapyard | Discovered new exit (range 15) 81 | -11/Scrapyard | Entered Materials 315 | -10/Materials | Build established: Mutant 334 | -10/Materials | Discovered new exit (range 4) 439 | -10/Materials | Discovered new exit (range 16) 448 | -10/Materials | Identified exit to Materials 480 | -10/Materials | Entered Mines 516 | -10/Mines | Found a damaged Exp. Sensor Array with a note attached 519 | -10/Mines | Found Prototype Device 520 | -10/Mines | Identified Exp. Sensor Array 635 | -10/Mines | Discovered exit to Materials (range 9) 673 | -10/Mines | Escorted by a lone wolf Derelict 693 | -10/Mines | Learned location of Storage (-8) 771 | -10/Mines | Learned location of 1 exit from Materials 916 | -10/Mines | Discovered exit to Materials (range 7) 1159 | -10/Mines | Assembled infested the area 1164 | -10/Mines | Assisted by a Guerilla fighting off Assembled 1180 | -10/Mines | Core integrity fell below 50% 1187 | -10/Mines | Core integrity fell below 20% 1188 | -10/Mines | Destroyed by D-53 Grenadier with Mini Grenade Launcher Last Messages --------------- 01057_ Exp. Sensor Array temporarily disabled. 01101_ Acquired Particle Gun. 01159_ ALERT: Infestation in the mines, dispatching Demolisher response squad. 01164_ A derelict emerges from the shadows: "You need to get out of here! I've been tracking a group of Assembled to figure out where they're coming from, and they're closing on this area, come on!" 01164_ LN-77C(h): "I'll hold them off! Go on ahead or try to find another way!" 01169_ HV Slug penetrates as-85751. 01177_ C-30 ARC bursts open, deploying its payload. 01177_ D-53 Grenadier unfolds itself. 01177_ Med. Laser destroyed. 01177_ Lgt. Treads destroyed. 01177_ K-01 Serf destroyed. 01179_ Beam Cannon destroyed. 01184_ Lgt. Treads destroyed. 01184_ Lgt. Nuclear Core destroyed. 01188_ R-06 Scavenger destroyed. 01188_ Mni. Grenade Launcher destroyed. Map ----- +----------------------------------------------------+ | #### #### ????????????????? | | ## #?# ???????????????? | | ###### ### #?# ####??????????????? | | #????# ## ##?# #? ##?????????????????? | | ##???## #### #??? ## #???????????????????? | | #????#######??# #??? ## #????#? ??????????? | | #?????????????#!#??? #?###????? #???#?????? | | ##?????????????#?#??# ???? ???? ??????????? | | #??????????????#=#??? ?????????? ??????????? | | ##??????????????#=#???##?????????? ? ??????????? | | #???????????????# #??????????????? ??????????? | | ??????????####### #??????????????? #??????????? | | ??????????# #???????????????? #??????????? | | ??????????# #######???????????????? #??????????? | | ??????????# #?????????????????????? #??????????? | | ??????????# #???????????????####???# #??????????? | | ??????????# #??????????????## ##??# #??????????? | | ??????????# #?????????????## #??# #??????????? | | ??#####???# #?????????????# #### ##?????????? | | ?## ##??# #???????????### ##????????? | | ## < #### #????#?###### #????????? | | # #??### # ## ? ? ?? | | #??# #### % | | ## #####??# #??## # | | ## #?????## #???## ######### | | ###?#?????# d @ #??????# #???????? | | ##?# #?????# d ##??????? #???????? | | ##??# #???# !* #????????? #???????? | | ##??# ###### %[ ##???????? #???????? | | " #??# *[= ##?????????? #???????? | | " ##?###### r ##########??????????? #???????? | | " ##?????### #?????#??????????????? #???????? | | #??????? #????? ????????????????#???????? | | ######??## ##????# #??????????????????#????? | | #???# ##????# #??????????????#### ###?? | | # #???# ##???# #??????????????# #?? | | ######## #???# ##??# #??????????????# #??? | | #??????# #???# #??# #???????????????# #??? | | ##??????# #???# #??# #???????????????## ###??? | | #???????# #???# #??# ##???????????????# #????? | | #???????# #???# ? #?## ####????????????# #????? | | #??####?# ##??# ##?# ##???????????# #????? | | #?## ### ##?# ##??# ##??????????# #????? | | ### ###%%##???# ############ #????? | | ###### ? = #????? | | #### !%= ###### | | #### #??# ##### ######## #### | | #??# ##??# #??## ##??????# #??# | | #?## ###???# #### #???????#*#### | | ### ##?????# #???????#=%=[ < | +----------------------------------------------------+ Best States ------------- Heat Dissipation 25 Energy Generation 14 Energy Capacity 160 Matter Stores 300 Matter Capacity 300 Sight Range 16 Robot Scan Range 20 Terrain Scan Range 16 Terrain Scan Density 10 Evasion (%) 40 Recoil Reduction 2 Item Schematics ----------------- None Robot Schematics ------------------ None Fabricated ------------ Nothing Alien Tech Used ----------------- None Achievements -------------- None Challenges ------------ None Game ------ Seed FireHellfireArmor Manual? 0 Play Time 00:09:20 Cumulative 58.2 hours Start 2022.04.26 @ 15:08:56 End 2022.04.26 @ 15:17:04 Sessions 1 Manual Loads 0 Difficulty Rogue Special Mode None Game No. 35 Rogue 5 Adventurer 30 Explorer 0 Win Type - Total 1 Types 1/0/0/0/0/0/0/0/0 Lore% 40 Gallery% 50 Achievement% 40 Wizard Run 0 Options --------- ASCII 0 Keyboard 0 Movement Numpad Keybinds 0 Fullscreen 1 Font 24/Terminus Map View 76x50 Tactical HUD 1 Map Filters NONE Filters NONE Steam 1 RUN: acf41d4a-0f05-48ab-ba91-6979b49fca05